[Event "Grandmaster Tournament Rapid"]
[Site "Biel/Bienne, Switzerland"]
[Date "2019.07.21"]
[Round "7.1"]
[White "Bogner, Sebastian"]
[Black "Abdusattorov, Nodirbek"]
[Result "0-1"]
[ECO "E17"]
[WhiteElo "2584"]
[BlackElo "2598"]
[PlyCount "100"]
[EventDate "2019.??.??"]
[EventType "rapid"]
[TimeControl "15+5"]
[WhiteClock "0:00:12"]
[BlackClock "0:04:11"]

1. d4 {[%emt 0:00:00]} Nf6 {[%emt 0:00:00]} 2. c4 {[%emt 0:00:00]} e6 {[%emt 0:
00:00]} 3. Nf3 {[%emt 0:00:00]} b6 {[%emt 0:00:00]} 4. g3 {[%emt 0:00:00]} Bb7
{[%emt 0:00:00]} 5. Bg2 {[%emt 0:00:00]} Be7 {[%emt 0:00:00]} 6. O-O {[%emt 0:
00:00]} O-O {[%emt 0:00:00]} 7. Re1 {[%emt 0:00:00]} Na6 {[%emt 0:00:00]} 8.
Nc3 {[%emt 0:00:00]} d5 {[%emt 0:00:00]} 9. cxd5 {[%emt 0:00:00]} exd5 {
[%emt 0:00:00]} 10. b3 {[%emt 0:00:00]} c6 {[%emt 0:00:00]} 11. Bb2 {[%emt 0:
00:00]} Nc7 {[%emt 0:00:00]} 12. Rc1 {[%emt 0:00:00]} Ne6 {[%emt 0:00:00]} 13.
e3 {[%emt 0:00:00]} Rc8 {[%emt 0:00:00]} 14. Ne5 {[%emt 0:00:00]} c5 {[%emt 0:
00:00]} 15. dxc5 {[%emt 0:00:00]} Nxc5 {[%emt 0:00:00]} 16. Nb5 {[%emt 0:00:00]
} Nce4 {[%emt 0:00:00]} 17. Nxa7 {[%emt 0:00:00]} Rxc1 {[%emt 0:00:00]} 18.
Qxc1 {[%emt 0:00:00]} Qa8 {[%emt 0:00:00]} 19. Nac6 {[%emt 0:00:00]} Bd6 {
[%emt 0:00:00]} 20. b4 {[%emt 0:00:00]} Qxa2 {[%emt 0:00:00]} 21. Qc2 {[%emt 0:
00:00]} Bxe5 {[%emt 0:00:00]} 22. Nxe5 {[%emt 0:00:00]} Rc8 {[%emt 0:00:00]}
23. Qb1 {[%emt 0:00:00]} Qxb1 {[%emt 0:00:00]} 24. Rxb1 {[%emt 0:00:00]} Rc2 {
[%emt 0:00:00]} 25. Nd3 {[%emt 0:00:00]} h5 {[%emt 0:00:00]} 26. Bxf6 {[%emt 0:
00:00]} Nxf6 {[%emt 0:00:00]} 27. Rc1 {[%emt 0:00:00]} Rd2 {[%emt 0:00:00]} 28.
Ne5 {[%emt 0:00:00]} Ba6 {[%emt 0:00:00]} 29. f3 {[%emt 0:00:11]} d4 {[%emt 0:
00:00]} 30. exd4 {[%emt 0:00:10]} Rxd4 {[%emt 0:00:00]} 31. Nc6 {[%emt 0:00:17]
} Rd2 {[%emt 0:00:00]} 32. f4 {[%emt 0:00:12]} Rb2 {[%emt 0:00:00]} 33. Ne7+ {
[%emt 0:00:45]} Kf8 {[%emt 0:00:00]} 34. Nc6 {[%emt 0:00:32]} Bb7 {[%emt 0:00:
00]} 35. h3 {[%emt 0:00:25]} Ne8 {[%emt 0:00:00]} 36. Bf3 {[%emt 0:00:21]} Rb3
{[%emt 0:00:00]} 37. Kf2 {[%emt 0:00:06]} Nd6 {[%emt 0:00:00]} 38. Rd1 {
[%emt 0:00:08]} Rxf3+ {[%emt 0:00:00]} 39. Kxf3 {[%emt 0:00:02]} Bxc6+ {
[%emt 0:00:00]} 40. Ke3 {[%emt 0:00:06]} Ke7 {[%emt 0:00:00]} 41. g4 {[%emt 0:
00:04]} h4 {[%emt 0:00:00]} 42. Ra1 {[%emt 0:00:02]} Bg2 {[%emt 0:00:00]} 43.
Ra7+ {[%emt 0:00:23]} Ke6 {[%emt 0:00:00]} 44. Ra6 {[%emt 0:00:02]} Bxh3 {
[%emt 0:00:00]} 45. Kf3 {[%emt 0:00:02]} Nc4 {[%emt 0:00:00]} 46. f5+ {[%emt 0:
00:05]} Kd5 {[%emt 0:00:00]} 47. Kf4 {[%emt 0:00:04]} Bg2 {[%emt 0:00:00]} 48.
Ra7 {[%emt 0:00:04]} Nd6 {[%emt 0:00:00]} 49. Ra2 {[%emt 0:00:09]} h3 {[%emt 0:
00:00]} 50. Rd2+ {[%emt 0:00:03]} Kc4 {[%emt 0:00:14]} 0-1

[Event "Grandmaster Tournament Rapid"]
[Site "Biel/Bienne, Switzerland"]
[Date "2019.07.21"]
[Round "7.2"]
[White "Vidit, Santosh"]
[Black "Maghsoodloo, Parham"]
[Result "1/2-1/2"]
[ECO "D85"]
[WhiteElo "2689"]
[BlackElo "2656"]
[PlyCount "171"]
[EventDate "2019.??.??"]
[EventType "rapid"]
[TimeControl "15+5"]
[WhiteClock "0:00:21"]
[BlackClock "0:00:55"]

1. d4 {[%emt 0:00:00]} Nf6 {[%emt 0:00:00]} 2. c4 {[%emt 0:00:00]} g6 {[%emt 0:
00:00]} 3. Nc3 {[%emt 0:00:00]} d5 {[%emt 0:00:00]} 4. cxd5 {[%emt 0:00:00]}
Nxd5 {[%emt 0:00:00]} 5. e4 {[%emt 0:00:00]} Nxc3 {[%emt 0:00:00]} 6. bxc3 {
[%emt 0:00:00]} Bg7 {[%emt 0:00:00]} 7. Qa4+ {[%emt 0:00:00]} Qd7 {[%emt 0:00:
00]} 8. Bb5 {[%emt 0:00:00]} c6 {[%emt 0:00:00]} 9. Bd3 {[%emt 0:00:00]} O-O {
[%emt 0:00:00]} 10. Nf3 {[%emt 0:00:00]} c5 {[%emt 0:00:00]} 11. Qxd7 {[%emt 0:
00:00]} Bxd7 {[%emt 0:00:00]} 12. Rb1 {[%emt 0:00:00]} b6 {[%emt 0:00:00]} 13.
Be3 {[%emt 0:00:00]} cxd4 {[%emt 0:00:00]} 14. cxd4 {[%emt 0:00:00]} Nc6 {
[%emt 0:00:00]} 15. O-O {[%emt 0:00:00]} Rfd8 {[%emt 0:00:00]} 16. d5 {[%emt 0:
00:00]} Na5 {[%emt 0:00:00]} 17. Rbc1 {[%emt 0:00:00]} e6 {[%emt 0:00:00]} 18.
Bg5 {[%emt 0:00:00]} f6 {[%emt 0:00:00]} 19. Bd2 {[%emt 0:00:00]} Nb7 {[%emt 0:
00:00]} 20. Rc7 {[%emt 0:00:00]} Nc5 {[%emt 0:00:00]} 21. Bc4 {[%emt 0:00:00]}
Rdc8 {[%emt 0:00:00]} 22. Rxc8+ {[%emt 0:00:00]} Rxc8 {[%emt 0:00:00]} 23. Be3
{[%emt 0:00:00]} Kf7 {[%emt 0:00:00]} 24. Rc1 {[%emt 0:00:16]} Bf8 {[%emt 0:00:
00]} 25. e5 {[%emt 0:00:21]} Bg7 {[%emt 0:00:00]} 26. exf6 {[%emt 0:00:08]}
Bxf6 {[%emt 0:00:00]} 27. dxe6+ {[%emt 0:00:27]} Bxe6 {[%emt 0:00:00]} 28.
Bxe6+ {[%emt 0:00:01]} Kxe6 {[%emt 0:00:00]} 29. Kf1 {[%emt 0:00:03]} Rc7 {
[%emt 0:00:00]} 30. Ke2 {[%emt 0:00:04]} Na6 {[%emt 0:00:00]} 31. Rxc7 {
[%emt 0:00:05]} Nxc7 {[%emt 0:00:00]} 32. Kd3 {[%emt 0:00:10]} Kd5 {[%emt 0:00:
00]} 33. Ng5 {[%emt 0:00:18]} Bxg5 {[%emt 0:00:00]} 34. Bxg5 {[%emt 0:00:01]}
b5 {[%emt 0:00:00]} 35. Kc3 {[%emt 0:00:19]} Ne6 {[%emt 0:00:00]} 36. Be3 {
[%emt 0:00:03]} a5 {[%emt 0:00:00]} 37. a3 {[%emt 0:00:13]} Nc5 {[%emt 0:00:00]
} 38. f3 {[%emt 0:00:04]} Nd7 {[%emt 0:00:00]} 39. Bg5 {[%emt 0:00:28]} Ne5 {
[%emt 0:00:00]} 40. Bf4 {[%emt 0:00:19]} b4+ {[%emt 0:00:00]} 41. axb4 {
[%emt 0:00:02]} axb4+ {[%emt 0:00:00]} 42. Kb3 {[%emt 0:00:04]} Nd3 {[%emt 0:
00:00]} 43. Bd2 {[%emt 0:00:10]} Kc5 {[%emt 0:00:00]} 44. g4 {[%emt 0:00:09]}
Ne5 {[%emt 0:00:00]} 45. Bxb4+ {[%emt 0:00:07]} Kd5 {[%emt 0:00:00]} 46. Be1 {
[%emt 0:00:06]} Nxf3 {[%emt 0:00:00]} 47. Bg3 {[%emt 0:00:01]} Ke4 {[%emt 0:00:
01]} 48. Kc3 {[%emt 0:00:01]} Ne5 {[%emt 0:00:19]} 49. Kd2 {[%emt 0:00:11]}
Nxg4 {[%emt 0:00:08]} 50. Ke2 {[%emt 0:00:00]} Ne3 {[%emt 0:00:05]} 51. Bb8 {
[%emt 0:00:03]} h5 {[%emt 0:00:15]} 52. Bc7 {[%emt 0:00:04]} g5 {[%emt 0:00:06]
} 53. Kf2 {[%emt 0:00:10]} Nd5 {[%emt 0:00:14]} 54. Bd8 {[%emt 0:00:02]} Kf4 {
[%emt 0:00:09]} 55. h3 {[%emt 0:00:06]} Kf5 {[%emt 0:00:14]} 56. Kf3 {[%emt 0:
00:02]} Nf6 {[%emt 0:00:11]} 57. Be7 {[%emt 0:00:04]} Ke6 {[%emt 0:00:18]} 58.
Bd8 {[%emt 0:00:01]} Ke5 {[%emt 0:00:02]} 59. Bc7+ {[%emt 0:00:05]} Kf5 {
[%emt 0:00:02]} 60. Bd8 {[%emt 0:00:01]} h4 {[%emt 0:00:02]} 61. Kg2 {[%emt 0:
00:21]} Nd5 {[%emt 0:00:10]} 62. Kh2 {[%emt 0:00:03]} Nf4 {[%emt 0:00:09]} 63.
Be7 {[%emt 0:00:04]} Nd3 {[%emt 0:00:29]} 64. Kg2 {[%emt 0:00:06]} Kf4 {
[%emt 0:00:04]} 65. Bd8 {[%emt 0:00:09]} Ne1+ {[%emt 0:00:08]} 66. Kf2 {
[%emt 0:00:04]} Nf3 {[%emt 0:00:07]} 67. Bc7+ {[%emt 0:00:01]} Ne5 {[%emt 0:00:
13]} 68. Kg2 {[%emt 0:00:11]} Ke4 {[%emt 0:00:01]} 69. Bd8 {[%emt 0:00:01]} Kf5
{[%emt 0:00:23]} 70. Be7 {[%emt 0:00:04]} Nd3 {[%emt 0:00:02]} 71. Bd8 {
[%emt 0:00:05]} Nb4 {[%emt 0:00:05]} 72. Be7 {[%emt 0:00:09]} Nc6 {[%emt 0:00:
01]} 73. Bc5 {[%emt 0:00:02]} Ke4 {[%emt 0:00:01]} 74. Bb6 {[%emt 0:00:03]} Kd3
{[%emt 0:00:09]} 75. Bc7 {[%emt 0:00:06]} Ke2 {[%emt 0:00:04]} 76. Bb6 {
[%emt 0:00:08]} Kd3 {[%emt 0:00:31]} 77. Kf3 {[%emt 0:00:07]} Ne5+ {[%emt 0:00:
01]} 78. Kg2 {[%emt 0:00:04]} Ke2 {[%emt 0:00:51]} 79. Bd8 {[%emt 0:00:02]} Nf3
{[%emt 0:00:01]} 80. Be7 {[%emt 0:00:05]} Ne1+ {[%emt 0:00:03]} 81. Kh1 {
[%emt 0:00:05]} Nf3 {[%emt 0:00:24]} 82. Kg2 {[%emt 0:00:01]} Ke3 {[%emt 0:00:
01]} 83. Bd8 {[%emt 0:00:04]} Ke4 {[%emt 0:00:09]} 84. Kf2 {[%emt 0:00:03]} Kf4
{[%emt 0:00:11]} 85. Bc7+ {[%emt 0:00:02]} Ne5 {[%emt 0:00:01]} 86. Kg2 {
[%emt 0:00:18]} 1/2-1/2

[Event "Grandmaster Tournament Rapid"]
[Site "Biel/Bienne, Switzerland"]
[Date "2019.07.21"]
[Round "7.3"]
[White "Georgiadis, Nico"]
[Black "Cori, Jorge"]
[Result "1-0"]
[ECO "B76"]
[WhiteElo "2514"]
[BlackElo "2686"]
[PlyCount "101"]
[EventDate "2019.??.??"]
[EventType "rapid"]
[TimeControl "15+5"]
[WhiteClock "0:00:18"]
[BlackClock "0:00:20"]

1. e4 {[%emt 0:00:00]} c5 {[%emt 0:00:00]} 2. Nf3 {[%emt 0:00:00]} Nc6 {
[%emt 0:00:00]} 3. Nc3 {[%emt 0:00:00]} g6 {[%emt 0:00:00]} 4. d4 {[%emt 0:00:
00]} cxd4 {[%emt 0:00:00]} 5. Nxd4 {[%emt 0:00:00]} Bg7 {[%emt 0:00:00]} 6. Be3
{[%emt 0:00:00]} d6 {[%emt 0:00:00]} 7. Qd2 {[%emt 0:00:00]} Bd7 {[%emt 0:00:
00]} 8. O-O-O {[%emt 0:00:00]} Nf6 {[%emt 0:00:00]} 9. f3 {[%emt 0:00:00]} O-O
{[%emt 0:00:00]} 10. g4 {[%emt 0:00:00]} Qa5 {[%emt 0:00:00]} 11. Kb1 {[%emt 0:
00:00]} Rfc8 {[%emt 0:00:00]} 12. h4 {[%emt 0:00:00]} h5 {[%emt 0:00:00]} 13.
g5 {[%emt 0:00:00]} Ne8 {[%emt 0:00:00]} 14. f4 {[%emt 0:00:00]} Bg4 {[%emt 0:
00:00]} 15. Be2 {[%emt 0:00:00]} Bxe2 {[%emt 0:00:00]} 16. Qxe2 {[%emt 0:00:00]
} e6 {[%emt 0:00:00]} 17. Rhf1 {[%emt 0:00:00]} Rc7 {[%emt 0:00:00]} 18. f5 {
[%emt 0:00:00]} Nxd4 {[%emt 0:00:00]} 19. Bxd4 {[%emt 0:00:00]} Bxd4 {[%emt 0:
00:00]} 20. Rxd4 {[%emt 0:00:00]} Qe5 {[%emt 0:00:00]} 21. Rd3 {[%emt 0:00:00]}
Rac8 {[%emt 0:00:13]} 22. Qf2 {[%emt 0:00:00]} gxf5 {[%emt 0:01:35]} 23. exf5 {
[%emt 0:00:00]} Ng7 {[%emt 0:00:04]} 24. fxe6 {[%emt 0:00:15]} fxe6 {[%emt 0:
00:02]} 25. Re1 {[%emt 0:00:07]} Qc5 {[%emt 0:00:04]} 26. Qxc5 {[%emt 0:00:11]}
dxc5 {[%emt 0:00:01]} 27. Ne4 {[%emt 0:00:26]} c4 {[%emt 0:00:13]} 28. Rf3 {
[%emt 0:00:29]} Rd8 {[%emt 0:00:02]} 29. c3 {[%emt 0:00:21]} b5 {[%emt 0:00:16]
} 30. a3 {[%emt 0:00:07]} a5 {[%emt 0:00:09]} 31. Kc2 {[%emt 0:00:14]} Kh8 {
[%emt 0:00:04]} 32. Nf6 {[%emt 0:00:13]} Rc5 {[%emt 0:00:03]} 33. Rd1 {[%emt 0:
00:18]} Rxd1 34. Kxd1 {[%emt 0:00:00]} Nf5 {[%emt 0:00:10]} 35. Nxh5 {[%emt 0:
00:08]} Nxh4 {[%emt 0:00:04]} 36. Rh3 {[%emt 0:00:06]} Nf5 {[%emt 0:00:03]} 37.
Nf4+ {[%emt 0:00:03]} Kg8 {[%emt 0:00:00]} 38. Nxe6 {[%emt 0:00:07]} Rd5+ {
[%emt 0:00:06]} 39. Kc1 {[%emt 0:00:06]} Re5 {[%emt 0:00:05]} 40. Nf4 {[%emt 0:
00:07]} Ne3 {[%emt 0:00:05]} 41. g6 {[%emt 0:00:11]} a4 {[%emt 0:00:07]} 42.
Kd2 {[%emt 0:00:08]} Nf1+ {[%emt 0:00:04]} 43. Kd1 {[%emt 0:00:01]} Re4 {
[%emt 0:00:09]} 44. Nh5 {[%emt 0:00:08]} Re6 {[%emt 0:00:01]} 45. Rf3 {[%emt 0:
00:03]} Ne3+ {[%emt 0:00:02]} 46. Kd2 {[%emt 0:00:01]} Nd5 {[%emt 0:00:05]} 47.
g7 {[%emt 0:00:01]} Ne7 {[%emt 0:00:06]} 48. Rf8+ {[%emt 0:00:03]} Kh7 {
[%emt 0:00:01]} 49. Rh8+ {[%emt 0:00:12]} Kg6 {[%emt 0:00:01]} 50. g8=Q+ {
[%emt 0:00:05]} Nxg8 {[%emt 0:00:10]} 51. Nf4+ {[%emt 0:00:01]} 1-0

[Event "Grandmaster Tournament Rapid"]
[Site "Biel/Bienne, Switzerland"]
[Date "2019.07.21"]
[Round "7.4"]
[White "Leko, Peter"]
[Black "Shankland, Sam"]
[Result "1/2-1/2"]
[ECO "D14"]
[WhiteElo "2674"]
[BlackElo "2713"]
[PlyCount "24"]
[EventDate "2019.??.??"]
[EventType "rapid"]
[TimeControl "15+5"]
[WhiteClock "0:13:28"]
[BlackClock "0:15:43"]

1. d4 {[%emt 0:00:00]} d5 {[%emt 0:00:00]} 2. c4 {[%emt 0:00:00]} c6 {[%emt 0:
00:00]} 3. cxd5 {[%emt 0:00:00]} cxd5 {[%emt 0:00:00]} 4. Nc3 {[%emt 0:00:00]}
Nf6 {[%emt 0:00:00]} 5. Bf4 {[%emt 0:00:00]} Nc6 {[%emt 0:00:00]} 6. e3 {
[%emt 0:00:00]} Bf5 {[%emt 0:00:00]} 7. Bd3 {[%emt 0:00:00]} Bxd3 {[%emt 0:00:
00]} 8. Qxd3 {[%emt 0:00:00]} e6 {[%emt 0:00:00]} 9. Nf3 {[%emt 0:00:00]} Bd6 {
[%emt 0:00:00]} 10. Bxd6 {[%emt 0:00:00]} Qxd6 {[%emt 0:00:00]} 11. O-O {
[%emt 0:00:00]} O-O {[%emt 0:00:00]} 12. Rac1 {[%emt 0:00:00]} Rfc8 {[%emt 0:
00:00]} 1/2-1/2